Cogmind - Beta 11 X5 @@@ ROGUE MODE // 2021.06.11 @ 23:43:33 Player: Amy! Result: Destroyed by S-27 Virus with Autogun Performance ------------- Evolutions (6) 3000 Regions Visited (24) 4800 Robots Destroyed (135) 675 Value Destroyed (8043) 8043 Prototype IDs (32) 640 Alien Tech Used (0) 0 Bonus (6001) 6001 TOTAL SCORE: 23159 Bonus ------- High Alert Combat Kills 11 Follower Combat Kills 1560 Entered Garrisons 1400 Used RIF Installer 3500 Aligned with FarCom 300 Friendly Fire -770 Cogmind --------- Core Integrity 0/1150 Matter 54/300 Energy 99/100 System Corruption 10% Temperature Cool (0) Movement Core (50) Location -4/Upper Caves Parts ------- > --- POWER (1) -------- (None) > --- PROPULSION (4) --- (None) > --- UTILITY (12) ----- Advanced Melee Analysis Suite Armor Integrity Analyzer Relay Coupler [NC] (29) Relay Coupler [Swarmer] (12) > --- WEAPON (2) ------- Makeshift Spear > --- INVENTORY (5) ---- Battle Cannon Magnetic Acceleration Cannon Enhanced Gauss Cannon Molecular Deconstructor Peak State ------------ > --- POWER ------------ Light Angular Momentum Engine > --- PROPULSION ------- Flexi-carbon Leg Flexi-carbon Leg Flexi-carbon Leg Myomer Leg > --- UTILITY ---------- Advanced Heat Sink High-capacity Storage Unit Reaction Control System Improved Medium Armor Plating Relay Coupler [NC] Relay Coupler [ARC] Relay Coupler [Swarmer] Relay Coupler [Swarmer] Relay Coupler [Duelist] Relay Coupler [Sentry] Relay Coupler [Sentry] Relay Coupler [Demolisher] > --- WEAPON ----------- Wave Gun KE Penetrator > --- INVENTORY -------- Light Antimatter Reactor Flexi-carbon Leg Flexi-carbon Leg Flexi-carbon Leg Improved Medium Armor Plating Relay Coupler [NC] Relay Coupler [NC] Relay Coupler [Duelist] Relay Coupler [Sentry] Relay Coupler [Specialist] Wave Gun Ion Burst Cannon KE Penetrator Magnetic Acceleration Cannon Magnetic Acceleration Cannon Remote Datajack Remote Datajack Molecular Deconstructor Segregator [Rating: 93] Favorites ----------- Power Light Nuclear Core Engine Light Ion Engine Power Core Light Nuclear Core Propulsion Armored Huge Wheel Treads Light Treads Leg Carbon-fiber Leg Wheel Armored Huge Wheel Flight Unit VTOL Module Utility High-capacity Storage Unit Device Advanced Heat Sink Storage High-capacity Storage Unit Processor Visual Processing Unit Hackware Relay Coupler [Sentry] Protection Improved Medium Armor Plating Weapon Remote Datajack Energy Gun Shock Rifle Energy Cannon Cooled Particle Cannon Ballistic Gun Gauss Rifle Ballistic Cannon Magnetic Acceleration Cannon Launcher Precision Grenade Launcher Special Weapon Remote Datajack Impact Weapon Power Maul Slashing Weapon Ripper Piercing Weapon Makeshift Spear Special Melee Weapon Improved Datajack Build | -11 -10 -10 -10 -9 -8 -8 -8 -8 -7 -7 -7 -7 -7 -6 -6 -6 -6 -5 -5 -4 -4 -4 -4 -4 ------- Run | Scr Mat Min Exi Min Mat Gar Mat Gar Fac Gar Fac Low Low Fac Gar Fac Gar Fac Gar Fac Gar Fac Upp Upp Slots Evolved 12 | . . . . . 4 . . . 2 . . . . 2 . . . 2 . 2 . . . . Power . | . . . . . . . . . . . . . . . . . . . . . . . . . Propulsion 2 | . . . . . 1 . . . 1 . . . . . . . . . . . . . . . Utility 10 | . . . . . 3 . . . 1 . . . . 2 . . . 2 . 2 . . . . Weapon . | . . . . . . . . . . . . . . . . . . . . . . . . . Parts Attached 359 | 6 12 8 4 1 5 24 3 14 10 10 39 8 3 15 16 10 36 7 52 8 30 24 13 1 Power 38 | 1 2 3 . . . 8 . 2 . 2 3 . . 3 2 1 1 1 6 . 1 . 2 . Engine 22 | 1 2 3 . . . 4 . 2 . . 3 . . 2 . . 1 . 3 . 1 . . . Core 16 | . . . . . . 4 . . . 2 . . . 1 2 1 . 1 3 . . . 2 . Reactor . | . . . . . . . . . . . . . . . . . . . . . . . . . Propulsion 72 | 2 3 3 2 . . 4 2 2 1 2 8 . 2 . 2 . 7 1 13 4 7 3 4 . Treads 11 | . . . . . . . . . . . 8 . . . 2 . . . 1 . . . . . Leg 44 | . 1 . 2 . . 4 1 2 . . . . . . . . 7 1 12 4 7 3 . . Wheel 10 | 2 2 . . . . . 1 . 1 2 . . 2 . . . . . . . . . . . Hover . | . . . . . . . . . . . . . . . . . . . . . . . . . Flight 7 | . . 3 . . . . . . . . . . . . . . . . . . . . 4 . Utility 102 | 1 3 1 1 . 5 3 . 5 3 2 7 3 . 7 4 1 16 2 13 3 10 9 3 . Device 21 | . 1 . . . 3 1 . . . . 2 1 . 1 . 1 2 1 3 2 1 1 1 . Storage 6 | 1 1 1 1 . . . . . . . . . . . . . 1 . 1 . . . . . Processor 5 | . . . . . 1 . . . . . 1 1 . . . . . . . . . . 2 . Hackware 57 | . . . . . . 2 . 5 3 2 3 1 . 3 3 . 12 1 8 1 7 6 . . Protection 13 | . 1 . . . 1 . . . . . 1 . . 3 1 . 1 . 1 . 2 2 . . Artifact . | . . . . . . . . . . . . . . . . . . . . . . . . . Weapon 147 | 2 4 1 1 1 . 9 1 5 6 4 21 5 1 5 8 8 12 3 20 1 12 12 4 1 Energy Gun 28 | . 1 . 1 . . 4 . 2 3 2 7 1 . 1 . 1 . . . . 4 1 . . Energy Cannon 14 | . . . . . . . . . . . . . . . . 2 . 1 6 . 3 2 . . Ballistic Gun 22 | 2 2 . . . . 2 . . . . 4 2 1 . 2 . . . 1 . 1 3 2 . Ballistic Cannon 11 | . . . . . . . . . . . 1 . . . 1 3 . 1 3 1 . 1 . . Launcher 4 | . . . . . . . . . . . 1 . . . 1 . . . 2 . . . . . Special Weapon 32 | . 1 . . . . . . . . . 1 2 . 2 3 2 6 1 5 . 4 3 2 . Impact Weapon 7 | . . . . . . . . . . . . . . . . . 4 . 3 . . . . . Slashing Weapon 13 | . . . . 1 . 2 1 1 1 . 2 . . 2 1 . 2 . . . . . . . Piercing Weapon 1 | . . . . . . . . . . . . . . . . . . . . . . . . 1 Special Melee Weapon 15 | . . 1 . . . 1 . 2 2 2 5 . . . . . . . . . . 2 . . Unidentified Prototypes 5 | . . . . . . . . . . . 1 1 . 1 1 . . 1 . . . . . . Parts Lost 126 | . 3 6 . . 1 15 . 1 . 8 14 1 1 2 2 3 6 2 25 . 4 22 8 2 Power 23 | . . 2 . . . 6 . . . 2 1 . . 2 1 1 . . 4 . 1 1 2 . Propulsion 36 | . 2 1 . . . 2 . . . 2 4 1 . . 1 1 2 . 10 . . 6 2 2 Utility 42 | . . 1 . . 1 3 . 1 . 2 4 . . . . 1 3 2 7 . 3 12 2 . Weapon 25 | . 1 2 . . . 4 . . . 2 5 . 1 . . . 1 . 4 . . 3 2 . Highest Loss Streak 17 | . 2 6 . . 1 6 . 1 . 7 10 1 1 1 2 3 3 1 12 . 2 17 6 1 Average Slot Usage (%) 85 | . 86 79 76 85 74 88 93 89 83 82 90 95 90 81 90 89 83 89 76 85 96 93 28 29 Engine 4 | . 14 14 14 14 9 4 9 9 7 1 6 7 7 4 1 . 1 2 1 . 2 4 . . Core 1 | . . . . . . 4 . . . 4 . . . 1 4 5 4 2 2 5 2 . . . Treads 5 | . . . . . . . . . . . 19 26 11 . 8 9 4 . 1 1 . . . . Leg 9 | . 3 5 23 28 18 24 15 9 . . . . . . . . 11 23 14 15 21 19 . . Wheel 4 | . 23 5 . . . . 6 9 15 15 4 . 8 13 7 6 4 . . . . . . . Device 4 | . 1 . . . 8 16 9 . . . 4 9 . 1 . 2 1 4 4 7 14 9 . . Storage 6 | . 14 7 7 14 9 9 9 9 7 7 7 7 7 6 6 6 5 5 4 5 5 4 . . Processor 2 | . . . . . 7 9 9 7 . . 1 3 7 6 6 6 4 . . . . . 4 10 Hackware 25 | . . . . . . 1 18 28 37 36 28 16 23 24 28 33 28 31 32 34 29 38 14 10 Protection 3 | . . 7 . . 4 2 . . . . 1 7 7 7 10 3 1 4 1 5 8 5 . . Energy Gun 3 | . 3 7 11 14 9 7 6 2 . 1 5 6 . 4 1 2 1 . . . 1 4 . . Ballistic Gun 2 | . 23 6 . . . 5 9 . . . 2 5 15 2 5 1 . . . . 1 1 . . Special Weapon 1 | . . . . . . . . . . . . 1 . 2 1 2 3 4 3 5 2 1 . . Slashing Weapon 1 | . . . . 10 9 3 3 8 6 7 1 . . 1 . 1 . . . . . . . . Special Melee Weapon 1 | . . 6 14 3 . . . 6 6 5 2 . . . . . . . . . . 1 . . Naked Turns 20 | . . . . . . . . . . . . . . . . . 18 . 2 . . . . . Heaviest Build 93 | 12 93 91 47 49 54 55 48 53 53 51 65 59 58 76 68 65 63 71 72 69 83 80 11 2 Greatest Support 88 | 26 26 16 60 60 60 75 70 28 56 56 88 84 56 56 56 40 65 65 65 65 80 85 12 12 Greatest Overweight (x) 5 | 1 5 5 . . . . 1 1 . . 2 1 2 1 2 2 2 1 3 4 1 . 1 . Average Overweight (x) . | . . . . . . . . 1 . . . . 1 1 1 1 1 . . . . . . . Largest Inventory Capacity 25 | 8 25 25 20 20 20 20 20 20 20 20 20 20 20 20 20 20 20 20 20 20 20 20 5 5 Average Capacity 18 | 6 10 12 12 20 20 20 20 20 20 20 20 20 20 20 20 20 19 20 18 20 20 19 5 5 Most Carried 20 | 2 15 15 6 14 20 20 20 20 20 20 20 20 19 20 20 20 20 20 20 20 20 20 5 5 Average Carried 17 | 1 7 8 5 12 16 19 19 19 19 19 17 19 17 18 18 19 18 19 15 17 19 18 4 5 Final Capacity 25 | 8 25 5 20 20 20 20 20 20 20 20 20 20 20 20 20 20 20 20 20 20 20 5 5 5 Final Carried 20 | 2 15 5 6 14 20 20 20 20 20 13 20 20 17 20 20 20 20 19 16 18 20 5 5 5 Class Distribution -------------------- 38% | Bothacker-Mutant 36% | Botlord-Mutant 11% | Mutant 6% | Scavenger-Mutant 5% | Bothacker-Skirmisher Dominant Class ---------------- Mutant | -10/Materials Mutant | -10/Mines Mutant | -10/Exiles Mutant | -9/Mines Mutant | -8/Materials Scavenger-Mutant | -8/Garrison Scavenger-Mutant | -8/Materials Bothacker-Mutant | -8/Garrison Bothacker-Mutant | -7/Factory Bothacker-Mutant | -7/Garrison Bothacker-Mutant | -7/Factory Bothacker-Mutant | -7/Lower Caves Bothacker-Mutant | -7/Lower Caves Bothacker-Mutant | -6/Factory Bothacker-Mutant | -6/Garrison Botlord-Mutant | -6/Factory Botlord-Mutant | -6/Garrison Botlord-Mutant | -5/Factory Botlord-Mutant | -5/Garrison Botlord-Mutant | -4/Factory Botlord-Mutant | -4/Garrison Botlord-Mutant | -4/Factory Mutant | -4/Upper Caves Mutant | -4/Upper Caves Resources | -11 -10 -10 -10 -9 -8 -8 -8 -8 -7 -7 -7 -7 -7 -6 -6 -6 -6 -5 -5 -4 -4 -4 -4 -4 ----------- Run | Scr Mat Min Exi Min Mat Gar Mat Gar Fac Gar Fac Low Low Fac Gar Fac Gar Fac Gar Fac Gar Fac Upp Upp Matter Collected 5204 | 260 194 3 . 56 109 289 . 165 57 104 530 348 119 215 438 38 628 107 449 384 302 201 164 44 Remotely 55 | . . . . . 55 . . . . . . . . . . . . . . . . . . . Salvage Created 4652 | . 307 . . 36 109 571 27 176 18 70 706 337 . 383 562 52 110 . 384 79 307 356 62 . Parts 213 | . 21 . . 6 6 21 4 4 1 1 57 11 . 15 18 3 3 . 12 1 11 16 2 . Haulers Intercepted . | . . . . . . . . . . . . . . . . . . . . . . . . . Recyclers Shooed 1 | . . . . . . . . . . . 1 . . . . . . . . . . . . . Parts Field Recycled . | . . . . . . . . . . . . . . . . . . . . . . . . . Retrieved Matter . | . . . . . . . . . . . . . . . . . . . . . . . . . Parts Self-Destructed 17 | . . . . . . . . . . . . 12 1 . . . . . . . . . 4 . Prevented 3 | . . . . . . . . . . . . 3 . . . . . . . . . . . . Kills | -11 -10 -10 -10 -9 -8 -8 -8 -8 -7 -7 -7 -7 -7 -6 -6 -6 -6 -5 -5 -4 -4 -4 -4 -4 ------- Run | Scr Mat Min Exi Min Mat Gar Mat Gar Fac Gar Fac Low Low Fac Gar Fac Gar Fac Gar Fac Gar Fac Upp Upp Combat Hostiles Destroyed 120 | . 9 . . 3 2 16 . 4 1 2 17 7 . 8 17 2 2 . 13 1 8 6 2 . Melee 15 | . . . . . 2 1 . 3 . 2 . . . 5 . . 1 . . . . 1 . . Guns 50 | . 9 . . 3 . 14 . 1 1 . 7 4 . 2 2 . . . . . 3 3 1 . Cannons 20 | . . . . . . . . . . . 1 . . . 2 2 . . 8 1 5 1 . . AOE 30 | . . . . . . . . . . . 9 2 . . 13 . . . 5 . . 1 . . Classes Destroyed 15 | . 2 . . . 1 1 1 . . . 6 . . . 2 . . . . . . 2 . . Worker 4 | . . . . . . . . . . . 4 . . . . . . . . . . . . . Builder 5 | . . . . . . . . . . . 5 . . . . . . . . . . . . . Recycler 2 | . . . . . . . . . . . 2 . . . . . . . . . . . . . Operator 1 | . . . . . . . . . . . . . . . . . . . . . . 1 . . Watcher 1 | . . . . . . . 1 . . . . . . . . . . . . . . . . . Swarmer 34 | . 3 . . 3 . 5 . 1 1 1 3 1 . 3 5 1 . . . . 4 . 3 . Saboteur 1 | . . . . . . . . . . . . . . . . . . . . . . 1 . . Grunt 47 | . 6 . . . . 10 . 2 . 1 3 6 . 1 6 . . . 11 1 . . . . Brawler 3 | . . . . . . . . . . . . . . . 1 . . . . . . 2 . . Duelist 4 | . . . . . . . . . . . . . . . 4 . . . . . . . . . Protector 1 | . . . . . . . . . . . 1 . . . . . . . . . . . . . Sentry 10 | . . . . . 2 . . . . . 3 . . 2 1 1 . . . . 1 . . . Specialist 3 | . . . . . . . . . . . 3 . . . . . . . . . . . . . Hunter 9 | . . . . . . 1 . 1 . . 1 . . 1 . . 1 . . . 3 1 . . Programmer 10 | . . . . . . . . . . . 3 . . 1 . . 1 . 2 . . 3 . . Best Kill Streak 15 | . 3 . . 3 1 5 1 1 1 1 15 4 . 2 12 1 1 . 5 1 5 2 1 . Combat Bots Only 12 | . 3 . . 3 1 5 . 1 1 1 9 4 . 2 12 1 1 . 5 1 5 2 1 . Max Kills in Single Turn 4 | . 1 . . 1 1 2 1 1 1 1 4 2 . 1 4 1 1 . 3 1 1 1 1 . Gunslinging 1 | . . . . . . 1 . . . . . . . . . . . . . . . . . . Exploded 4 | . . . . . . . . . . . 3 2 . . 4 . . . 2 . . 1 . . Melee 1 | . . . . . 1 1 . 1 . 1 . . . 1 . . 1 . . . . 1 . . Uniques/NPCs Destroyed . | . . . . . . . . . . . . . . . . . . . . . . . . . Combat | -11 -10 -10 -10 -9 -8 -8 -8 -8 -7 -7 -7 -7 -7 -6 -6 -6 -6 -5 -5 -4 -4 -4 -4 -4 -------- Run | Scr Mat Min Exi Min Mat Gar Mat Gar Fac Gar Fac Low Low Fac Gar Fac Gar Fac Gar Fac Gar Fac Upp Upp Damage Taken 18580 | . 635 506 . 83 118 1820 34 310 269 962 2388 449 217 1345 539 618 910 431 2515 128 1035 2315 703 250 Core 3743 | . 154 74 . 6 15 335 . 83 29 219 333 73 40 222 63 129 254 114 446 22 73 628 245 186 Absorbed by Shields 33 | . . . . . . 33 . . . . . . . . . . . . . . . . . . Core Remaining (%) 32 | 100 . . . 6 . . . 21 . . . . . . . . 21 . 44 . . . . . Volleys Fired 493 | . 36 2 . 9 3 64 . 10 9 5 42 19 5 29 36 19 39 5 48 12 43 43 15 . Largest 2 | . 2 2 . 1 1 2 . 1 2 1 2 2 2 2 2 2 1 2 2 1 2 2 1 . Hottest 181 | . 100 60 . 40 40 85 . 56 130 65 130 78 56 83 85 133 30 83 148 53 175 181 30 . Shots Fired 691 | . 69 4 . 9 3 98 . 10 11 5 69 37 10 38 40 27 39 7 78 12 53 57 15 . Gun 417 | . 66 4 . 9 3 98 . 10 11 5 58 35 10 27 15 5 . . . . 14 36 11 . Cannon 135 | . . . . . . . . . . . 1 . . . 3 12 13 4 59 5 28 10 . . Launcher 25 | . . . . . . . . . . . 7 . . . 11 . . . 7 . . . . . Special 114 | . 3 . . . . . . . . . 3 2 . 11 11 10 26 3 12 7 11 11 4 . Kinetic 291 | . 63 2 . . . 43 . . . . 36 18 10 10 17 12 . 2 23 5 16 23 11 . Thermal 245 | . 6 2 . 9 3 55 . 10 11 5 21 . . 17 1 5 13 2 36 . 26 23 . . Explosive 25 | . . . . . . . . . . . 7 . . . 11 . . . 7 . . . . . Electromagnetic 19 | . . . . . . . . . . . 2 17 . . . . . . . . . . . . Robot Hit Streak 14 | . 7 1 . 3 . 11 . 3 4 5 9 10 9 7 14 9 8 11 7 3 8 4 5 . Robot Miss Streak 6 | . 2 3 . 3 . 5 . 4 3 . 4 5 4 3 3 3 4 2 6 2 5 3 2 . Penetration Max 1 | . . . . . . . . . . . 1 . . . . . . . . . . 1 . . Secondary Targets 6 | . . . . . . 2 . . . . 2 . . 1 . . . . . . . 1 . . Max Gunslinging Chain 1 | . . . . . . 1 . . . . 1 . . 1 . . . . . . . 1 . . Shots Hit Robots 572 | . 52 1 . 4 5 87 1 26 14 15 63 30 8 44 28 19 33 8 53 7 32 33 9 . Core Hits 310 | . 20 1 . 3 2 37 1 4 2 4 76 20 5 9 41 4 3 1 44 1 12 16 4 . Critical Kills 1 | . . . . . . . . . . . 1 . . . . . . . . . . . . . Critical Parts Destroyed 2 | . . . . . . . . . . . . . . . . . . . . . . 2 . . Critical Strikes 18 | . . . . . . 8 . . . 1 1 . . 2 . . . . 1 . 2 3 . . Burn 10 | . . . . . . 8 . . . 1 . . . 1 . . . . . . . . . . Destroy 3 | . . . . . . . . . . . 1 . . . . . . . . . . 2 . . Blast 4 | . . . . . . . . . . . . . . . . . . . 1 . 2 1 . . Sever 1 | . . . . . . . . . . . . . . 1 . . . . . . . . . . Melee Attacks 154 | . . . . . 6 10 1 26 17 15 18 . . 36 1 . 12 10 1 . . 1 . . Impact 17 | . . . . . . . . . . . . . . . . . 6 10 1 . . . . . Slashing 98 | . . . . . 6 10 1 12 9 7 10 . . 36 1 . 6 . . . . . . . Piercing . | . . . . . . . . . . . . . . . . . . . . . . . . . Sneak Attacks 22 | . . . . . 1 . . 8 4 3 5 . . 1 . . . . . . . . . . Combat Hostiles 5 | . . . . . . . . 2 . 1 1 . . 1 . . . . . . . . . . Follow-up Attacks . | . . . . . . . . . . . . . . . . . . . . . . . . . Damage Inflicted 14713 | . 518 24 . 55 263 1276 31 596 98 458 2816 597 176 1060 1625 319 262 140 2357 54 731 1142 115 . Guns 5077 | . 494 24 . 55 . 973 . 57 98 60 1034 500 176 313 280 100 . . . . 129 669 115 . Cannons 2914 | . . . . . . . . . . . 38 . . . 52 219 133 42 1430 54 602 344 . . Explosions 4129 | . . . . . . . . . . . 1683 97 . . 1293 . . . 927 . . 129 . . Melee 2564 | . . . . . 263 303 31 539 . 398 56 . . 747 . . 129 98 . . . . . . Ramming 5 | . . . . . . . . . . . 5 . . . . . . . . . . . . . Kinetic 4064 | . 461 12 . . . 397 . . . . 784 274 176 78 315 219 . 42 387 54 184 566 115 . Thermal 3933 | . 57 12 . 55 . 576 . 57 98 60 270 97 . 235 17 100 133 . 1043 . 547 576 . . Explosive 3903 | . . . . . . . . . . . 1683 . . . 1293 . . . 927 . . . . . Electromagnetic 244 | . . . . . . . . . . . 18 226 . . . . . . . . . . . . Impact 120 | . . . . . . . . . . . . . . . . . 22 98 . . . . . . Slashing 2444 | . . . . . 263 303 31 539 . 398 56 . . 747 . . 107 . . . . . . . Piercing . | . . . . . . . . . . . . . . . . . . . . . . . . . Highest Corruption 28 | . . 5 5 5 . . . . 1 1 28 28 28 2 2 2 2 . 4 . . 10 10 10 Average Corruption 6 | . . 5 5 5 . . . . 1 1 11 28 28 1 2 2 2 . 3 . . 3 10 10 Corruption Purged . | . . . . . . . . . . . . . . . . . . . . . . . . . Effects 201 | . . . 11 5 . . . . 1 2 62 44 6 2 6 4 14 . 17 . . 10 11 6 Message Errors 62 | . . . 4 1 . . . . . 1 19 12 3 2 3 1 6 . 4 . . . 3 3 Matter Fused 36 | . . . 5 1 . . . . . . 12 5 2 . . . . . 3 . . 2 5 1 Heat Flow Errors 20 | . . . . 1 . . . . . . 5 6 . . . 2 3 . 2 . . 1 . . Energy Discharges 26 | . . . . . . . . . 1 . 6 6 1 . 1 1 4 . 4 . . 1 1 . Parts Rejected 3 | . . . . . . . . . . . . 1 . . . . . . 1 . . 1 . . Data Loss (minor) 24 | . . . 2 1 . . . . . 1 7 4 . . 2 . 1 . 3 . . 1 1 1 Data Loss (major) 11 | . . . . 1 . . . . . . 3 6 . . . . . . . . . . 1 . Misfires 4 | . . . . . . . . . . . 2 2 . . . . . . . . . . . . Alerts 3 | . . . . . . . . . . . 2 1 . . . . . . . . . . . . Misdirections 3 | . . . . . . . . . . . 2 . . . . . . . . . . . . 1 Weapon Failures 9 | . . . . . . . . . . . 4 1 . . . . . . . . . 4 . . Overload Shots . | . . . . . . . . . . . . . . . . . . . . . . . . . Overflow Damage 382 | . . . . . 37 . . 136 . 84 26 . . 12 6 6 3 . 35 . . 37 . . Projectiles 38 | . . . . . . . . . . . . . . . . 6 3 . 29 . . . . . Explosions 75 | . . . . . . . . . . . 26 . . . 6 . . . 6 . . 37 . . Melee 269 | . . . . . 37 . . 136 . 84 . . . 12 . . . . . . . . . . Knockbacks 7 | . . . . . . . . . . . . . . . 2 1 . 2 1 . 1 . . . Impact 1 | . . . . . . . . . . . . . . . . . . 1 . . . . . . Kinetic 6 | . . . . . . . . . . . . . . . 2 1 . 1 1 . 1 . . . Secondary . | . . . . . . . . . . . . . . . . . . . . . . . . . Self-Inflicted Damage 700 | . . . . . . . . . . . 263 45 . . 111 . . . 28 . . 253 . . Shots 23 | . . . . . . . . . . . 13 1 . . 4 . . . 2 . . 3 . . Rammed 1 | . . . . . . . . . . . 1 . . . . . . . . . . . . . Targets Rammed 1 | . . . . . . . . . . . 1 . . . . . . . . . . . . . Kicked . | . . . . . . . . . . . . . . . . . . . . . . . . . Crushed . | . . . . . . . . . . . . . . . . . . . . . . . . . Highest Temperature 276 | . 60 38 . 85 . 10 . 20 90 40 272 189 9 125 8 276 218 . 252 . 42 129 . . Average Temperature 46 | . 20 12 . 49 . 3 . 9 36 18 86 58 4 49 3 75 50 . 29 . 18 24 . . Received Heat Transfer 3827 | . 330 80 . . 36 818 . 117 12 117 495 243 72 300 93 48 54 108 726 21 91 39 . 27 Effects 1 | . . . . . . . . . . . 1 . . . . . . . . . . . . . Interference 1 | . . . . . . . . . . . 1 . . . . . . . . . . . . . Siege Activations . | . . . . . . . . . . . . . . . . . . . . . . . . . Robots Corrupted . | . . . . . . . . . . . . . . . . . . . . . . . . . Combat Hostiles . | . . . . . . . . . . . . . . . . . . . . . . . . . Parts Fried 3 | . . . . . . . . . . . . . . . . . 3 . . . . . . . Impact Corruptions . | . . . . . . . . . . . . . . . . . . . . . . . . . Robots Melted 2 | . . . . . . 1 . . . . . . . 1 . . . . . . . . . . Combat Hostiles 2 | . . . . . . 1 . . . . . . . 1 . . . . . . . . . . Parts Melted 13 | . . . . . . 2 . . 1 . . . . 7 . . . . 1 . 2 . . . Heat Transferred 6950 | . 125 25 . 125 . 2102 . 148 222 222 385 100 . 518 37 225 146 . 1174 . 725 671 . . Parts Sabotaged . | . . . . . . . . . . . . . . . . . . . . . . . . . Parts Stolen . | . . . . . . . . . . . . . . . . . . . . . . . . . Parts Stripped . | . . . . . . . . . . . . . . . . . . . . . . . . . Power Chain Reactions 1 | . . . . . . . . . . . . 1 . . . . . . . . . . . . Missiles Intercepted . | . . . . . . . . . . . . . . . . . . . . . . . . . Alert | -11 -10 -10 -10 -9 -8 -8 -8 -8 -7 -7 -7 -7 -7 -6 -6 -6 -6 -5 -5 -4 -4 -4 -4 -4 ------- Run | Scr Mat Min Exi Min Mat Gar Mat Gar Fac Gar Fac Low Low Fac Gar Fac Gar Fac Gar Fac Gar Fac Upp Upp Peak Influence 625 | . 211 60 . 70 122 449 218 359 237 213 335 . . 213 378 318 523 380 375 203 294 625 . . Initial 274 | . . 25 . . 27 79 218 48 188 119 71 . . 44 21 198 222 274 66 168 . 154 . . Average 199 | . 87 16 . 67 66 201 158 250 159 169 137 . . 95 229 253 380 249 271 181 120 252 . . Maximum Alert Level 2 | . 1 . . . . 2 1 1 1 1 1 . . 1 1 1 2 1 1 1 1 2 . . Low Security (%) 50 | 100 97 100 . 100 100 54 39 24 45 65 61 . . 95 27 14 2 21 27 78 83 28 . . Level 1 43 | . 2 . . . . 35 60 75 54 34 38 . . 4 72 85 49 78 72 21 16 62 . . Level 2 6 | . . . . . . 9 . . . . . . . . . . 48 . . . . 9 . . Level 3 . | . . . . . . . . . . . . . . . . . . . . . . . . . Level 4 . | . . . . . . . . . . . . . . . . . . . . . . . . . Level 5 . | . . . . . . . . . . . . . . . . . . . . . . . . . High Security . | . . . . . . . . . . . . . . . . . . . . . . . . . Max Security . | . . . . . . . . . . . . . . . . . . . . . . . . . Squads Dispatched 29 | . 1 . . . 1 . 1 . 2 . 6 . . 5 . 1 . 4 . 2 . 6 . . Investigation 9 | . . . . . . . . . 2 . 2 . . 3 . 1 . . . 1 . . . . Extermination 6 | . . . . . . . . . . . 3 . . 1 . . . . . . . 2 . . Reinforcement 11 | . 1 . . . . . 1 . . . 1 . . 1 . . . 3 . 1 . 3 . . Assault 1 | . . . . . . . . . . . . . . . . . . . . . . 1 . . Garrison 2 | . . . . . 1 . . . . . . . . . . . . 1 . . . . . . Intercept . | . . . . . . . . . . . . . . . . . . . . . . . . . Construction Impeded 2 | . . . . . . . . . . . 1 . . . . . . . . . . 1 . . Haulers Reinforced 1 | . . . . . . . . . . . . . . . . . . 1 . . . . . . Cargo Convoy Interrupts 1 | . . . . . . . . . . . . . . . . . . . . . . 1 . . Stealth | -11 -10 -10 -10 -9 -8 -8 -8 -8 -7 -7 -7 -7 -7 -6 -6 -6 -6 -5 -5 -4 -4 -4 -4 -4 --------- Run | Scr Mat Min Exi Min Mat Gar Mat Gar Fac Gar Fac Low Low Fac Gar Fac Gar Fac Gar Fac Gar Fac Upp Upp Distress Signals 12 | . 3 . . . . . 1 . . . 2 . . 1 . . . 4 . . . 1 . . Communications Jammed . | . . . . . . . . . . . . . . . . . . . . . . . . . Distress Signals . | . . . . . . . . . . . . . . . . . . . . . . . . . Times Spotted 354 | . 17 18 . 3 2 17 6 17 7 22 30 11 1 23 28 6 26 12 25 11 21 34 10 7 Peak Tracking Total 13 | . 4 11 . 2 1 5 5 4 4 13 8 4 1 4 13 3 6 6 8 4 5 13 5 7 Tactical Retreats 27 | . 2 2 . . . 1 . 2 1 1 1 1 . 4 1 1 3 1 2 . 1 2 1 . Traps | -11 -10 -10 -10 -9 -8 -8 -8 -8 -7 -7 -7 -7 -7 -6 -6 -6 -6 -5 -5 -4 -4 -4 -4 -4 ------- Run | Scr Mat Min Exi Min Mat Gar Mat Gar Fac Gar Fac Low Low Fac Gar Fac Gar Fac Gar Fac Gar Fac Upp Upp Traps Triggered 43 | . . . . . . 5 . 8 3 2 2 . . 2 6 . 4 . 4 . 7 . . . Indirectly . | . . . . . . . . . . . . . . . . . . . . . . . . . Trap Hack Attempts 41 | . . . . . . 19 . . . . 22 . . . . . . . . . . . . . Triggered . | . . . . . . . . . . . . . . . . . . . . . . . . . Disarmed 2 | . . . . . . . . . . . 2 . . . . . . . . . . . . . Reprogrammed 8 | . . . . . . 3 . . . . 5 . . . . . . . . . . . . . Reused 3 | . . . . . . 2 . . . . 1 . . . . . . . . . . . . . Traps Extracted . | . . . . . . . . . . . . . . . . . . . . . . . . . Installed . | . . . . . . . . . . . . . . . . . . . . . . . . . Triggered 5 | . . . . . . 2 . . . . 1 2 . . . . . . . . . . . . Machines | -11 -10 -10 -10 -9 -8 -8 -8 -8 -7 -7 -7 -7 -7 -6 -6 -6 -6 -5 -5 -4 -4 -4 -4 -4 ---------- Run | Scr Mat Min Exi Min Mat Gar Mat Gar Fac Gar Fac Low Low Fac Gar Fac Gar Fac Gar Fac Gar Fac Upp Upp Machines Disabled 22 | . . . . . . 1 . 3 . 1 1 1 . 1 1 1 4 . 2 . 3 3 . . Max in Single Turn 3 | . . . . . . 1 . 1 . 1 1 1 . 1 1 1 1 . 1 . 1 3 . . Garrison Access 1 | . . . . . . . . . . . . . . . . . . . . . . 1 . . Garrison Relay 14 | . . . . . . 1 . 3 . 1 . . . . 1 . 3 . 2 . 3 . . . Machines Sabotaged . | . . . . . . . . . . . . . . . . . . . . . . . . . Garrisons Compromised . | . . . . . . . . . . . . . . . . . . . . . . . . . Overloaded Fab Kills . | . . . . . . . . . . . . . . . . . . . . . . . . . Fab Network Shutdowns . | . . . . . . . . . . . . . . . . . . . . . . . . . Hacking | -11 -10 -10 -10 -9 -8 -8 -8 -8 -7 -7 -7 -7 -7 -6 -6 -6 -6 -5 -5 -4 -4 -4 -4 -4 --------- Run | Scr Mat Min Exi Min Mat Gar Mat Gar Fac Gar Fac Low Low Fac Gar Fac Gar Fac Gar Fac Gar Fac Upp Upp Machines Accessed 35 | . 4 . 2 1 1 . 2 . 4 . 5 . . 5 . 1 . 3 . 1 . 4 2 . Terminals 23 | . 4 . . 1 . . 1 . 3 . 5 . . 4 . . . 2 . . . 3 . . Fabricators 1 | . . . . . . . . . . . . . . . . . . . . . . 1 . . Repair Stations . | . . . . . . . . . . . . . . . . . . . . . . . . . Recycling Units . | . . . . . . . . . . . . . . . . . . . . . . . . . Scanalyzers . | . . . . . . . . . . . . . . . . . . . . . . . . . Garrison Access 7 | . . . . . 1 . 1 . 1 . . . . 1 . 1 . 1 . 1 . . . . Total Hacks 93 | . 13 . 5 3 1 . 7 . 10 . 11 . . 11 . 2 . 8 . 3 . 11 8 . Successful 47 | . 6 . 5 2 1 . 4 . 5 . 4 . . 4 . 2 . 4 . 1 . 1 8 . Failed 46 | . 7 . . 1 . . 3 . 5 . 7 . . 7 . . . 4 . 2 . 10 . . Catastrophic 14 | . 2 . . . . . . . 2 . 3 . . 4 . . . 1 . . . 2 . . Database Lockouts . | . . . . . . . . . . . . . . . . . . . . . . . . . Manual 63 | . 9 . 1 2 . . 2 . 9 . 11 1 . 10 . 1 . 7 . 2 . 8 . . Terminals 64 | . 13 . . 3 . . 6 . 8 . 11 . . 9 . . . 7 . . . 7 . . Fabricators 4 | . . . . . . . . . . . . . . . . . . . . . . 4 . . Repair Stations . | . . . . . . . . . . . . . . . . . . . . . . . . . Recycling Units . | . . . . . . . . . . . . . . . . . . . . . . . . . Scanalyzers . | . . . . . . . . . . . . . . . . . . . . . . . . . Garrison Access 12 | . . . . . 1 . 1 . 2 . . . . 2 . 2 . 1 . 3 . . . . Terminal Hacks 21 | . 4 . 5 1 . . 2 . . . . . . . . . . 1 . . . . 8 . Record 12 | . . . 4 1 . . . . . . . . . . . . . . . . . . 7 . Open Door 1 | . . . . . . . . . . . . . . . . . . . . . . . 1 . Level Access Points 1 | . 1 . . . . . . . . . . . . . . . . . . . . . . . Branch Access Points 1 | . 1 . . . . . . . . . . . . . . . . . . . . . . . Terminal Index 1 | . 1 . . . . . . . . . . . . . . . . . . . . . . . Unreport Threat 2 | . . . . . . . 1 . . . . . . . . . . 1 . . . . . . Recall Reinforcements 1 | . . . . . . . 1 . . . . . . . . . . . . . . . . . Zone Layout 1 | . 1 . . . . . . . . . . . . . . . . . . . . . . . EX-Prototype ID Bank 1 | . . . 1 . . . . . . . . . . . . . . . . . . . . . Fabricator Hacks 1 | . . . . . . . . . . . . . . . . . . . . . . 1 . . Build 1 | . . . . . . . . . . . . . . . . . . . . . . 1 . . Repair Station Hacks . | . . . . . . . . . . . . . . . . . . . . . . . . . Recycling Unit Hacks . | . . . . . . . . . . . . . . . . . . . . . . . . . Scanalyzer . | . . . . . . . . . . . . . . . . . . . . . . . . . Garrison Access Hacks 7 | . . . . . 1 . 1 . 1 . . . . 1 . 1 . 1 . 1 . . . . Unlock Access 7 | . . . . . 1 . 1 . 1 . . . . 1 . 1 . 1 . 1 . . . . Unauthorized Hacks 18 | . 2 . . 1 . . 1 . 4 . 4 . . 3 . 1 . 2 . . . . . . Terminals 15 | . 2 . . 1 . . 1 . 3 . 4 . . 2 . . . 2 . . . . . . Assimilate 1 | . . . . . . . . . . . 1 . . . . . . . . . . . . . Botnet 14 | . 2 . . 1 . . 1 . 3 . 3 . . 2 . . . 2 . . . . . . Fabricators . | . . . . . . . . . . . . . . . . . . . . . . . . . Repair Stations . | . . . . . . . . . . . . . . . . . . . . . . . . . Recycling Units . | . . . . . . . . . . . . . . . . . . . . . . . . . Scanalyzers . | . . . . . . . . . . . . . . . . . . . . . . . . . Garrison Access 3 | . . . . . . . . . 1 . . . . 1 . 1 . . . . . . . . Eject 3 | . . . . . . . . . 1 . . . . 1 . 1 . . . . . . . . Data Cores Recovered 1 | . . . . . . . . . . . . . . . . . . . . . . 1 . . Used . | . . . . . . . . . . . . . . . . . . . . . . . . . Hacking Detections 23 | . 2 . . . . . 1 . 4 . 5 . . 4 . . . 2 . 1 . 4 . . Full Trace Events 5 | . . . . . . . . . 1 . 1 . . 2 . . . . . 1 . . . . Feedback Events 1 | . . . . . . . . . . . . . . 1 . . . . . . . . . . Corruption 1 | . . . . . . . . . . . . . . 1 . . . . . . . . . . Feedback Blocked . | . . . . . . . . . . . . . . . . . . . . . . . . . Robot Schematics Acquired . | . . . . . . . . . . . . . . . . . . . . . . . . . Robots Built 3 | . . . . . . . . . . . . . . . . . . . . . . 3 . . Matter 318 | . . . . . . . . . . . . . . . . . . . . . . 318 . . Time 169 | . . . . . . . . . . . . . . . . . . . . . . 169 . . Total Robot Build Rating 18 | . . . . . . . . . . . . . . . . . . . . . . 18 . . Part Schematics Acquired . | . . . . . . . . . . . . . . . . . . . . . . . . . Parts Built . | . . . . . . . . . . . . . . . . . . . . . . . . . Matter . | . . . . . . . . . . . . . . . . . . . . . . . . . Time . | . . . . . . . . . . . . . . . . . . . . . . . . . Total Part Build Rating . | . . . . . . . . . . . . . . . . . . . . . . . . . Parts Repaired . | . . . . . . . . . . . . . . . . . . . . . . . . . Time . | . . . . . . . . . . . . . . . . . . . . . . . . . Parts Recycled . | . . . . . . . . . . . . . . . . . . . . . . . . . Recycled Matter . | . . . . . . . . . . . . . . . . . . . . . . . . . Retrieved Matter . | . . . . . . . . . . . . . . . . . . . . . . . . . Retrieved Components . | . . . . . . . . . . . . . . . . . . . . . . . . . Parts Scanalyzed . | . . . . . . . . . . . . . . . . . . . . . . . . . Part Schematics Acquired . | . . . . . . . . . . . . . . . . . . . . . . . . . Parts Damaged . | . . . . . . . . . . . . . . . . . . . . . . . . . Bothacking | -11 -10 -10 -10 -9 -8 -8 -8 -8 -7 -7 -7 -7 -7 -6 -6 -6 -6 -5 -5 -4 -4 -4 -4 -4 ------------ Run | Scr Mat Min Exi Min Mat Gar Mat Gar Fac Gar Fac Low Low Fac Gar Fac Gar Fac Gar Fac Gar Fac Upp Upp Used RIF Installer 7 | . . . . . . 1 . 1 . 1 . . . . 1 . 1 . 1 . 1 . . . Command Fork 1 | . . . . . . . . . . . . . . . . . . . 1 . . . . . Zone Cloak 1 | . . . . . . . . 1 . . . . . . . . . . . . . . . . Patrol Navigation 1 | . . . . . . . . . . 1 . . . . . . . . . . . . . . Program Shield 1 | . . . . . . . . . . . . . . . . . 1 . . . . . . . Autoassimilate 2 | . . . . . . . . . . . . . . . 1 . . . . . 1 . . . Robots Hacked 100 | . . . . . . . . 8 5 5 8 1 . 6 9 8 19 2 6 4 12 5 2 . Non-combat 19 | . . . . . . . . . 4 . 6 . . 3 . 6 . . . . . . . . Combat 81 | . . . . . . . . 8 1 5 2 1 . 3 9 2 19 2 6 4 12 5 2 . Autoassimilated 15 | . . . . . . . . . . . . . . . 1 1 4 . 1 . 7 . 1 . Robot Hacks Applied 88 | . . . . . . . . 9 6 5 8 1 . 7 8 7 15 2 5 4 5 5 1 . parse_system 2 | . . . . . . . . . 1 . 1 . . . . . . . . . . . . . no_distress 3 | . . . . . . . . . . . 3 . . . . . . . . . . . . . find_chute 1 | . . . . . . . . . 1 . . . . . . . . . . . . . . . hold_bot 1 | . . . . . . . . . . . . . . 1 . . . . . . . . . . start_disposal 1 | . . . . . . . . . . . . . . 1 . . . . . . . . . . drop_inventory 4 | . . . . . . . . . 1 . . . . 1 . 2 . . . . . . . . ignore_parts 3 | . . . . . . . . . . . . . . . . 3 . . . . . . . . link_fov 1 | . . . . . . . . . 1 . . . . . . . . . . . . . . . link_complan 1 | . . . . . . . . 1 . . . . . . . . . . . . . . . . spike_heat 2 | . . . . . . . . . . . . . . 1 1 . . . . . . . . . overload_power 3 | . . . . . . . . . . . 2 . . 1 . . . . . . . . . . amplify_resonance 1 | . . . . . . . . . . . . . . 1 . . . . . . . . . . disable_weapons 2 | . . . . . . . . . . . . . . . . . 2 . . . . . . . overwrite_iff 17 | . . . . . . . . 3 1 1 . . . . 5 . 4 1 1 . . 1 . . formatsys_low 1 | . . . . . . . . . . . . . . . . 1 . . . . . . . . formatsys_high 45 | . . . . . . . . 5 1 4 2 1 . 1 2 1 9 1 4 4 5 4 1 . Relay Couplers Released 64 | . . . . . . 3 . 11 3 4 . . . 4 4 3 12 . 8 . 12 . . . Ejected 10 | . . . . . . . . . 3 . . . . 4 . 3 . . . . . . . . Machine Destruction 54 | . . . . . . 3 . 11 . 4 . . . . 4 . 12 . 8 . 12 . . . Attached 56 | . . . . . . 2 . 5 3 2 2 1 . 3 3 . 12 1 8 1 7 6 . . Robots Rewired 8 | . . . . . . . . 2 . . . . . . . . 6 . . . . . . . Allies Hacked 1 | . . . . . . . . . . . . . . 1 . . . . . . . . . . Hacks Repelled . | . . . . . . . . . . . . . . . . . . . . . . . . . Allies | -11 -10 -10 -10 -9 -8 -8 -8 -8 -7 -7 -7 -7 -7 -6 -6 -6 -6 -5 -5 -4 -4 -4 -4 -4 -------- Run | Scr Mat Min Exi Min Mat Gar Mat Gar Fac Gar Fac Low Low Fac Gar Fac Gar Fac Gar Fac Gar Fac Upp Upp Total Allies 94 | . . . . . . . . 10 1 5 3 1 . 1 8 3 23 2 6 6 13 8 4 . Largest Group 16 | . . . . . . . . 3 3 4 1 1 1 1 3 3 16 12 5 6 6 8 2 . Highest-Rated Group 366 | . . . . . . . . 89 89 79 32 41 41 41 70 64 366 298 166 283 284 345 67 . Highest-Rated Ally 49 | . . . . . . . . 38 38 31 32 41 41 41 30 29 41 49 49 49 49 49 38 . Total Orders 17 | . . . . . . . . 4 . 2 . . . . 1 2 8 . . . . . . . STAY 8 | . . . . . . . . 2 . 1 . . . . 1 . 4 . . . . . . . FOLLOW 4 | . . . . . . . . 2 . 1 . . . . . . 1 . . . . . . . AID 5 | . . . . . . . . . . . . . . . . 2 3 . . . . . . . Ally Attacks 443 | . . . . . . . . 45 8 14 5 4 3 16 22 5 82 78 14 38 38 57 14 . Total Damage 9254 | . . . . . . . . 653 126 227 127 99 102 517 370 76 1572 1472 241 784 907 1828 153 . Kills 60 | . . . . . . . . 7 3 2 1 2 1 1 2 1 8 8 2 3 6 11 2 . Allies Corrupted 1 | . . . . . . . . . . . . . . . . . . . . . . 1 . . Allies Melted . | . . . . . . . . . . . . . . . . . . . . . . . . . Intel | -11 -10 -10 -10 -9 -8 -8 -8 -8 -7 -7 -7 -7 -7 -6 -6 -6 -6 -5 -5 -4 -4 -4 -4 -4 ------- Run | Scr Mat Min Exi Min Mat Gar Mat Gar Fac Gar Fac Low Low Fac Gar Fac Gar Fac Gar Fac Gar Fac Upp Upp Robot Analysis Total . | . . . . . . . . . . . . . . . . . . . . . . . . . Derelict Logs Recovered 9 | . . 2 . 1 . . . . . . . 2 1 . . . . . . . . . . 3 Drone Launches . | . . . . . . . . . . . . . . . . . . . . . . . . . Drone Recoveries . | . . . . . . . . . . . . . . . . . . . . . . . . . Exploration | -11 -10 -10 -10 -9 -8 -8 -8 -8 -7 -7 -7 -7 -7 -6 -6 -6 -6 -5 -5 -4 -4 -4 -4 -4 ------------- Run | Scr Mat Min Exi Min Mat Gar Mat Gar Fac Gar Fac Low Low Fac Gar Fac Gar Fac Gar Fac Gar Fac Upp Upp Turns Passed 17034 | 44 531 107 332 282 217 892 153 1092 711 292 2173 869 140 1230 872 355 1803 323 1349 404 1482 924 310 147 Spaces Moved 11213 | 32 389 156 432 278 165 488 100 733 609 183 1269 492 96 776 509 213 1208 212 529 174 652 702 515 301 Core 390 | 2 . . . . . . . . . . . . . . . . 36 . 65 . . 101 144 42 Treads 1330 | . . . . . . . . . . . 718 492 . . . 1 1 . 85 33 . . . . Legs 3652 | . . . 306 278 165 488 43 . . . . . . . . . 387 212 379 141 652 601 . . Wheels 4946 | 30 389 17 . . . . 57 733 609 183 551 . 96 776 509 212 784 . . . . . . . Hover . | . . . . . . . . . . . . . . . . . . . . . . . . . Flight 895 | . . 139 126 . . . . . . . . . . . . . . . . . . . 371 259 Fastest Speed 32 | 50 80 37 37 90 90 90 100 115 100 100 100 152 115 115 115 115 50 120 50 120 120 50 32 42 Average Speed 118 | 83 94 56 74 90 90 97 110 115 100 100 131 160 125 115 126 130 125 129 190 195 180 109 40 48 Slowest Speed 440 | 95 175 175 90 90 90 100 190 115 100 100 260 252 130 115 130 260 360 200 360 440 200 120 112 55 Overloaded Moves . | . . . . . . . . . . . . . . . . . . . . . . . . . Propulsion Burnouts . | . . . . . . . . . . . . . . . . . . . . . . . . . Robots Hopped 4 | . . 1 . . . . . . . . . . . . . . . . . . . . 2 1 Cave-ins Triggered 1 | . . . . . . . . . . . 1 . . . . . . . . . . . . . Exploration Rate (%) 38 | 3 56 33 63 68 9 53 10 71 18 40 29 60 15 24 59 7 66 6 54 5 83 19 52 53 Regions Visited 24 Branch Regions 7 Pre-discovered Areas 5 | . . 1 1 . . . . . . . . 1 . . . . . . . . . . . 2 Known Exits Taken 10 | . 1 . . 1 1 . 1 . 1 . . 1 . 1 . 1 . 1 . 1 . . . . Unknown Exits Taken 7 | 1 . 1 1 . . . . . . . 1 . 1 . . . . . . . . 1 1 . Scrap Searched 6 | . . . . 1 . . . . . . . 1 . . . . . . . . . . 2 2 Spaces Dug 36 | . . . . . . . . . 9 . 22 . . 2 . . 2 1 . . . . . . Terrain Destroyed 241 | . 1 . . . . . . . 9 . 66 6 . 3 27 2 2 1 56 1 . 67 . . Melee 22 | . . . . . . . . . 9 . 8 . . 2 . . 2 1 . . . . . . Projectile 16 | . 1 . . . . . . . . . . . . 1 2 2 . . 6 1 . 3 . . AOE 203 | . . . . . . . . . . . 58 6 . . 25 . . . 50 . . 64 . . Terrain Rammed . | . . . . . . . . . . . . . . . . . . . . . . . . . Walls Destroyed . | . . . . . . . . . . . . . . . . . . . . . . . . . Machines Disabled . | . . . . . . . . . . . . . . . . . . . . . . . . . Actions | -11 -10 -10 -10 -9 -8 -8 -8 -8 -7 -7 -7 -7 -7 -6 -6 -6 -6 -5 -5 -4 -4 -4 -4 -4 --------- Run | Scr Mat Min Exi Min Mat Gar Mat Gar Fac Gar Fac Low Low Fac Gar Fac Gar Fac Gar Fac Gar Fac Upp Upp Total 14090 | 46 486 167 441 300 218 799 146 944 679 274 1670 539 106 1027 699 269 1454 240 766 230 896 794 599 301 Wait 1248 | 7 27 . . 5 33 154 22 73 25 37 252 11 1 150 81 15 62 . 86 21 115 18 53 . Move 11185 | 31 388 153 431 277 165 487 100 732 608 182 1268 491 95 775 508 212 1207 212 528 174 651 701 510 299 Hop 4 | . . 1 . . . . . . . . . . . . . . . . . . . . 2 1 Pick Up 206 | 2 16 1 3 8 6 14 7 11 6 4 19 4 . 13 5 7 36 2 18 8 10 3 3 . Fast Attach 97 | 6 3 . 3 . 5 7 2 . 1 1 12 1 . 3 2 1 9 2 17 5 7 . 9 1 Attach 101 | . 4 4 1 . . 9 . 1 3 4 11 4 3 5 3 1 13 1 15 2 3 10 4 . Detach 14 | . 2 . . . . . . . . . 2 . 2 3 1 . . . 1 1 1 . 1 . Swap 161 | . 5 4 . 1 . 8 1 13 6 5 16 3 . 7 11 8 14 4 20 1 20 14 . . Drop 123 | . 5 2 3 . . 8 13 14 4 5 7 6 . 6 3 6 13 4 2 6 11 3 2 . Fire 493 | . 36 2 . 9 3 64 . 10 9 5 42 19 5 29 36 19 39 5 48 12 43 43 15 . Melee 154 | . . . . . 6 10 1 26 17 15 18 . . 36 1 . 12 10 1 . . 1 . . Ram . | . . . . . . . . . . . . . . . . . . . . . . . . . Kick . | . . . . . . . . . . . . . . . . . . . . . . . . . Crush 1 | . . . . . . . . . . . 1 . . . . . . . . . . . . . Escape Stasis 241 | . . . . . . 19 . 64 . 16 . . . . 48 . 29 . 30 . 35 . . . Rewire 21 | . . . . . . . . . . . . . . . . . 20 . . . . 1 . . Trap 41 | . . . . . . 19 . . . . 22 . . . . . . . . . . . . . Miscellaneous . | . . . . . . . . . . . . . . . . . . . . . . . . . Route ------- -11/Scrapyard -10/Materials (discovered 5 exits: *Mat x3 / *Min x2) -10/Mines -10/Exiles (discovered 2 exits: *Min x2) -9/Mines -8/Materials -8/Garrison (discovered 2 exits: *Mat x2) -8/Materials -8/Garrison (discovered 3 exits: *Fac x3) -7/Factory (discovered 3 exits: *Low x2 / Gar) -7/Garrison -7/Factory (discovered 2 exits: *Fac / *Low) -7/Lower Caves -7/Lower Caves (discovered 2 exits: *Fac / Zio) -6/Factory (discovered 3 exits: *Fac x2 / Gar) -6/Garrison (discovered 3 exits: *Fac x3) -6/Factory -6/Garrison (discovered 2 exits: *Fac x2) -5/Factory -5/Garrison -4/Factory -4/Garrison (discovered 3 exits: *Fac x3) -4/Factory -4/Upper Caves -4/Upper Caves (discovered 1 exit: Res) History --------- Turn | Location | Event 17 | -11/Scrapyard | Discovered new exit (range 15) 45 | -11/Scrapyard | Entered Materials 79 | -10/Materials | Discovered new exit (range 8) 100 | -10/Materials | Discovered new exit (range 15) 263 | -10/Materials | Identified exit to Mines 314 | -10/Materials | Build established: Mutant 426 | -10/Materials | Core integrity fell below 50% 465 | -10/Materials | Identified exit to Materials 576 | -10/Materials | Entered Mines 591 | -10/Mines | Assembled infested the area 596 | -10/Mines | Assisted by a Guerilla fighting off Assembled 597 | -10/Mines | Learned location of Storage (-9) 634 | -10/Mines | Core integrity fell below 20% 640 | -10/Mines | Found a hidden stash of uninstalled traps 650 | -10/Mines | Learned Materials interactive machine intel 663 | -10/Mines | Lost 6 parts (2p1n1u2w) 681 | -10/Mines | Deemed a non-threat by the Exiles lab entrance 681 | -10/Mines | Discovered new exit (range 5) 683 | -10/Mines | Entered Exiles 692 | -10/Exiles | Discovered new exit (range 14) 699 | -10/Exiles | Met 8R-AWN 704 | -10/Exiles | Met EX-HEX 715 | -10/Exiles | Met EX-BIN 719 | -10/Exiles | Aligned with FarCom system 719 | -10/Exiles | Given EX-Vault access code 728 | -10/Exiles | Opened EX-Vault 731 | -10/Exiles | Found Potential Leg 734 | -10/Exiles | Found Potential Leg 774 | -10/Exiles | Warned to stay clear of 0b10 Research branches 802 | -10/Exiles | Met EX-DEC 806 | -10/Exiles | Learned location of Zion (-7) 1007 | -10/Exiles | Discovered new exit (range 10) 1015 | -10/Exiles | Left Exiles lab with Potential Leg 1015 | -10/Exiles | Entered Mines 1083 | -9/Mines | A weapon hastily lodged in a ceiling crevice suddenly fell to the ground 1176 | -9/Mines | Identified exit to Materials 1297 | -9/Mines | Entered Materials 1297 | -8/Materials | Evolved 4 slots: Propulsion x1, Utility x3 1298 | -8/Materials | Loaded intel: 19 interactive machine locations 1444 | -8/Materials | Garrison activated, responded to threat 1514 | -8/Materials | Identified exit to Garrison 1514 | -8/Materials | Entered Garrison 1824 | -8/Garrison | Lost 6 parts (2p1n2u1w) 2038 | -8/Garrison | Discovered new exit (range 8) 2078 | -8/Garrison | Triggered checkpoint 2139 | -8/Garrison | Build established: Scavenger-Mutant 2162 | -8/Garrison | Triggered checkpoint 2162 | -8/Garrison | Discovered new exit (range 15) 2166 | -8/Garrison | Core integrity fell below 50% 2211 | -8/Garrison | Installed Relay Interface Framework 2301 | -8/Garrison | Garrison Relay disabled 2304 | -8/Garrison | Triggered checkpoint 2348 | -8/Garrison | Lost 3 parts (1p1u1w) 2406 | -8/Garrison | Entered Materials 2559 | -8/Materials | Identified exit to Garrison 2559 | -8/Materials | Entered Garrison 2656 | -8/Garrison | Triggered checkpoint 2687 | -8/Garrison | Garrison Relay disabled 2774 | -8/Garrison | Triggered checkpoint 2840 | -8/Garrison | Triggered checkpoint 2864 | -8/Garrison | Triggered checkpoint 2918 | -8/Garrison | Build established: Bothacker-Mutant 2978 | -8/Garrison | Triggered checkpoint 2989 | -8/Garrison | Garrison Relay disabled 3056 | -8/Garrison | Discovered new exit (range 9) 3108 | -8/Garrison | Triggered checkpoint 3227 | -8/Garrison | Discovered new exit (range 8) 3270 | -8/Garrison | Triggered checkpoint 3324 | -8/Garrison | Garrison Relay disabled 3511 | -8/Garrison | Discovered new exit (range 10) 3543 | -8/Garrison | Expanded RIF knowledge: Zone Cloak 3651 | -8/Garrison | Entered Factory 3651 | -7/Factory | Accompanied by 3 allies 3651 | -7/Factory | Evolved 2 slots: Propulsion x1, Utility x1 3866 | -7/Factory | Discovered new exit (range 7) 4012 | -7/Factory | Discovered new exit (range 6) 4347 | -7/Factory | Identified exit to Garrison 4362 | -7/Factory | Entered Garrison 4362 | -7/Garrison | Accompanied by 1 ally 4368 | -7/Garrison | Expanded RIF knowledge: Patrol Navigation 4408 | -7/Garrison | Triggered checkpoint 4452 | -7/Garrison | Garrison Relay disabled 4522 | -7/Garrison | Triggered checkpoint 4647 | -7/Garrison | Discovered new exit (range 8) 4654 | -7/Garrison | Entered Factory 4675 | -7/Factory | Lost 7 parts (2p2n2u1w) 4877 | -7/Factory | Discovered new exit (range 8) 5237 | -7/Factory | Found Prototype Launcher 5981 | -7/Factory | Identified Rocket Array 5986 | -7/Factory | Core integrity fell below 50% 6014 | -7/Factory | Crushed by falling debris 6014 | -7/Factory | System corruption reached 10% 6022 | -7/Factory | Destroyed 9 combat bots 6045 | -7/Factory | Lost 10 parts (1p2n4u3w) 6079 | -7/Factory | Core integrity fell below 20% 6466 | -7/Factory | Build established: Bothacker-Skirmisher 6717 | -7/Factory | Discovered new exit (range 4) 6827 | -7/Factory | Entered Lower Caves 6891 | -7/Lower Caves | Identified exit to Lower Caves 7115 | -7/Lower Caves | Build established: Bothacker-Mutant 7263 | -7/Lower Caves | Acquired the password to a Derelict Tinkerer's latest research 7287 | -7/Lower Caves | Found Prototype Special Weapon 7301 | -7/Lower Caves | Identified Molecular Deconstructor 7358 | -7/Lower Caves | Learned location of Extension (-5) 7696 | -7/Lower Caves | Entered another Lower Caves area 7696 | -7/Lower Caves | Accompanied by 1 ally 7698 | -7/Lower Caves | Attracted the attention of an 0b10 checkpoint 7732 | -7/Lower Caves | Identified exit to Zion 7825 | -7/Lower Caves | Discovered new exit (range 11) 7836 | -7/Lower Caves | Entered Factory 7836 | -6/Factory | Accompanied by 1 ally 7836 | -6/Factory | Evolved 2 slots: Utility x2 8595 | -6/Factory | Discovered new exit (range 6) 8815 | -6/Factory | Discovered new exit (range 10) 9045 | -6/Factory | Identified exit to Garrison 9066 | -6/Factory | Entered Garrison 9176 | -6/Garrison | Triggered checkpoint 9283 | -6/Garrison | Triggered checkpoint 9294 | -6/Garrison | Triggered checkpoint 9328 | -6/Garrison | Destroyed 12 combat bots 9424 | -6/Garrison | Discovered new exit (range 12) 9484 | -6/Garrison | Triggered checkpoint 9550 | -6/Garrison | Discovered new exit (range 8) 9733 | -6/Garrison | Discovered new exit (range 10) 9755 | -6/Garrison | Expanded RIF knowledge: Autoassimilate 9800 | -6/Garrison | Triggered checkpoint 9851 | -6/Garrison | Garrison Relay disabled 9938 | -6/Garrison | Entered Factory 10053 | -6/Factory | Build established: Botlord-Mutant 10180 | -6/Factory | Lost 3 parts (1p1n1u) 10287 | -6/Factory | Identified exit to Garrison 10293 | -6/Factory | Entered Garrison 10293 | -6/Garrison | Accompanied by 3 allies 10312 | -6/Garrison | Triggered checkpoint 10324 | -6/Garrison | Triggered checkpoint 10352 | -6/Garrison | Triggered checkpoint 10394 | -6/Garrison | Garrison Relay disabled 10620 | -6/Garrison | Core integrity fell below 50% 10760 | -6/Garrison | Triggered checkpoint 10925 | -6/Garrison | Discovered new exit (range 12) 11186 | -6/Garrison | Triggered checkpoint 11193 | -6/Garrison | Garrison Relay disabled 11450 | -6/Garrison | Triggered checkpoint 11504 | -6/Garrison | Triggered checkpoint 11525 | -6/Garrison | Released all parts (10) 11556 | -6/Garrison | Lost 3 parts (2n1u) 11801 | -6/Garrison | Discovered new exit (range 10) 11826 | -6/Garrison | Expanded RIF knowledge: Program Shield 11848 | -6/Garrison | Triggered checkpoint 11868 | -6/Garrison | Garrison Relay disabled 12096 | -6/Garrison | Entered Factory 12096 | -5/Factory | Accompanied by 12 allies 12096 | -5/Factory | Evolved 2 slots: Utility x2 12321 | -5/Factory | Garrison activated, responded to threat 12419 | -5/Factory | Identified exit to Garrison 12419 | -5/Factory | Entered Garrison 12486 | -5/Garrison | Triggered checkpoint 12668 | -5/Garrison | Garrison Relay disabled 12781 | -5/Garrison | Spotted B-75 Beast 12793 | -5/Garrison | Triggered checkpoint 12841 | -5/Garrison | Lost 4 parts (1p1n2u) 12986 | -5/Garrison | Triggered checkpoint 13039 | -5/Garrison | Triggered checkpoint 13089 | -5/Garrison | Lost 3 parts (2n1u) 13152 | -5/Garrison | Triggered checkpoint 13200 | -5/Garrison | Released all parts (6) 13220 | -5/Garrison | Garrison Relay disabled 13225 | -5/Garrison | Core integrity fell below 50% 13228 | -5/Garrison | Lost 12 parts (3p4n3u2w) 13449 | -5/Garrison | Discovered new exit (range 14) 13535 | -5/Garrison | Expanded RIF knowledge: Command Fork 13768 | -5/Garrison | Entered Factory 13768 | -4/Factory | Accompanied by 5 allies 13768 | -4/Factory | Evolved 2 slots: Utility x2 14170 | -4/Factory | Identified exit to Garrison 14172 | -4/Factory | Entered Garrison 14172 | -4/Garrison | Accompanied by 6 allies 14544 | -4/Garrison | Triggered checkpoint 14842 | -4/Garrison | Discovered new exit (range 8) 14937 | -4/Garrison | Triggered checkpoint 15009 | -4/Garrison | Garrison Relay disabled 15168 | -4/Garrison | Triggered checkpoint 15299 | -4/Garrison | Discovered new exit (range 15) 15341 | -4/Garrison | Expanded RIF knowledge: Autoassimilate 15386 | -4/Garrison | Triggered checkpoint 15413 | -4/Garrison | Garrison Relay disabled 15500 | -4/Garrison | Triggered checkpoint 15548 | -4/Garrison | Triggered checkpoint 15570 | -4/Garrison | Garrison Relay disabled 15622 | -4/Garrison | Discovered new exit (range 13) 15654 | -4/Garrison | Entered Factory 15654 | -4/Factory | Accompanied by 6 allies 16236 | -4/Factory | Discovered new exit (range 15) 16325 | -4/Factory | Fabricated B-60 Warrior? 16493 | -4/Factory | Cargo convoy interrupted 16498 | -4/Factory | Spotted Executioner 16500 | -4/Factory | Spotted Executioner 16537 | -4/Factory | Core integrity fell below 50% 16565 | -4/Factory | System corruption reached 10% 16567 | -4/Factory | Lost 17 parts (1p5n9u2w) 16578 | -4/Factory | Entered Upper Caves 16729 | -4/Upper Caves | Core integrity fell below 20% 16748 | -4/Upper Caves | Encountered a Warlord checkpoint 16773 | -4/Upper Caves | Lost 6 parts (2p2n1u1w) 16803 | -4/Upper Caves | A Commander dispatched an escort 16807 | -4/Upper Caves | Learned location of 1 exit from Factory 16807 | -4/Upper Caves | Learned 8 Research zone layouts 16807 | -4/Upper Caves | Learned Extension emergency access door positions 16848 | -4/Upper Caves | Discovered new exit (range 7) 16888 | -4/Upper Caves | Entered another Upper Caves area 16888 | -4/Upper Caves | Accompanied by 2 allies 16889 | -4/Upper Caves | Commander's escort returned to base 16889 | -4/Upper Caves | Commander's escort returned to base 16889 | -4/Upper Caves | Encountered a Warlord checkpoint 16898 | -4/Upper Caves | Identified exit to Research 16945 | -4/Upper Caves | Learned location of Testing (-2) 16970 | -4/Upper Caves | Spotted B-86 Titan 17002 | -4/Upper Caves | Build established: Mutant 17008 | -4/Upper Caves | Learned location of Quarantine (-3) 17012 | -4/Upper Caves | Attracted the attention of an 0b10 checkpoint 17035 | -4/Upper Caves | Destroyed by S-27 Virus with Autogun Last Messages --------------- 16980_ Found Enh. Gauss Cannon. 16980_ Found Mak. Spear. 16980_ Found 19 Matter. 16981_ Acquired Mak. Spear. 16982_ Acquired 19 matter. 16985_ Acquired 4 matter. 16988_ System corrupted: Matter fused (-9). 17008_ Acquired derelict log, extracted data. World map updated: -3/Quarantine. 17012_ Y-64 Sentinel: "INTERCEPTING UNREGISTERED DERELICT." 17014_ Mak. Flight Unit destroyed. 17021_ Searching scrap... 17021_ Found Armor Integrity Analyzer. 17021_ Found Hacking Suite. 17021_ Found System Restoration Module. 17021_ Found 21 Matter. 17022_ Acquired 21 matter. 17024_ Critical hit (Burn: +37). 17031_ 2,